[Event "Late-Titled-Tuesday-Blitz-January-16-2024"]
[Site "Chess.com"]
[Date "2024.01.16"]
[Round "4"]
[White "NikoTheodorou"]
[Black "Yaacovn"]
[Result "1-0"]
[WhiteElo "3082"]
[BlackElo "2893"]
[TimeControl "180+1"]
[EndTime "14:38:26 PST"]
[Termination "NikoTheodorou won on time"]

1. Nf3 {[%clk 0:03:00.9]} 1... Nf6 {[%clk 0:02:59.6]} 2. b3 {[%clk 0:03:01.5]}
2... b6 {[%clk 0:02:58.4]} 3. Bb2 {[%clk 0:03:01.8]} 3... Bb7 {[%clk 0:02:59]}
4. g3 {[%clk 0:03:02.1]} 4... g6 {[%clk 0:02:58]} 5. Bg2 {[%clk 0:03:02.6]} 5...
Bg7 {[%clk 0:02:58.5]} 6. O-O {[%clk 0:03:03.2]} 6... O-O {[%clk 0:02:58.9]} 7.
c4 {[%clk 0:03:04]} 7... c5 {[%clk 0:02:59.2]} 8. d4 {[%clk 0:03:04.7]} 8...
cxd4 {[%clk 0:02:59.5]} 9. Qxd4 {[%clk 0:03:05.4]} 9... d5 {[%clk 0:02:56.3]}
10. Rd1 {[%clk 0:03:03.7]} 10... e6 {[%clk 0:02:44.2]} 11. cxd5 {[%clk 0:02:58]}
11... Bxd5 {[%clk 0:02:28.5]} 12. Nc3 {[%clk 0:02:57.9]} 12... Nc6 {[%clk
0:02:28.2]} 13. Qa4 {[%clk 0:02:58.1]} 13... Qe8 {[%clk 0:02:15.5]} 14. Rac1
{[%clk 0:02:34]} 14... Rc8 {[%clk 0:02:11.3]} 15. Nxd5 {[%clk 0:01:54.1]} 15...
Nxd5 {[%clk 0:02:05.8]} 16. Bxg7 {[%clk 0:01:55]} 16... Kxg7 {[%clk 0:02:05.9]}
17. e4 {[%clk 0:01:15.4]} 17... Nf6 {[%clk 0:01:58.2]} 18. e5 {[%clk 0:00:57]}
18... Nd5 {[%clk 0:01:55.6]} 19. h4 {[%clk 0:00:55.1]} 19... h5 {[%clk
0:01:54.6]} 20. Qe4 {[%clk 0:00:51.5]} 20... Nce7 {[%clk 0:01:50.8]} 21. Qe1
{[%clk 0:00:31.7]} 21... Rxc1 {[%clk 0:01:47.1]} 22. Rxc1 {[%clk 0:00:32.6]}
22... Qd7 {[%clk 0:01:45.8]} 23. Ng5 {[%clk 0:00:33.2]} 23... Rc8 {[%clk
0:01:42.1]} 24. Ne4 {[%clk 0:00:33.9]} 24... Rxc1 {[%clk 0:01:37.3]} 25. Qxc1
{[%clk 0:00:34.8]} 25... Nf5 {[%clk 0:01:30.7]} 26. Qd2 {[%clk 0:00:34.7]} 26...
Qc7 {[%clk 0:01:26.8]} 27. Qb2 {[%clk 0:00:35.5]} 27... b5 {[%clk 0:01:19.7]}
28. Nd6 {[%clk 0:00:33]} 28... Qc3 {[%clk 0:01:00.8]} 29. Nxf5+ {[%clk 0:00:33]}
29... gxf5 {[%clk 0:00:42.5]} 30. Qe2 {[%clk 0:00:33.9]} 30... Qc1+ {[%clk
0:00:37.5]} 31. Kh2 {[%clk 0:00:34.2]} 31... Qc5 {[%clk 0:00:31.9]} 32. Kg1
{[%clk 0:00:22.6]} 32... Qc1+ {[%clk 0:00:29.3]} 33. Bf1 {[%clk 0:00:23.3]}
33... b4 {[%clk 0:00:23.3]} 34. Qxh5 {[%clk 0:00:23.1]} 34... Nc3 {[%clk
0:00:23.9]} 35. Qf3 {[%clk 0:00:11.3]} 35... Qd2 {[%clk 0:00:23.8]} 36. g4
{[%clk 0:00:09.1]} 36... fxg4 {[%clk 0:00:21.2]} 37. Qxg4+ {[%clk 0:00:10]}
37... Kf8 {[%clk 0:00:21.4]} 38. Qxb4+ {[%clk 0:00:09.6]} 38... Kg7 {[%clk
0:00:20.3]} 39. Qg4+ {[%clk 0:00:09.5]} 39... Kf8 {[%clk 0:00:20.6]} 40. Qf3
{[%clk 0:00:09.1]} 40... Nxa2 {[%clk 0:00:18.1]} 41. Qa8+ {[%clk 0:00:09.5]}
41... Kg7 {[%clk 0:00:17]} 42. Qxa7 {[%clk 0:00:10.4]} 42... Nc3 {[%clk
0:00:16.8]} 43. Qe3 {[%clk 0:00:10.7]} 43... Qb2 {[%clk 0:00:14.2]} 44. Bc4
{[%clk 0:00:09.9]} 44... Kf8 {[%clk 0:00:11.3]} 45. Kg2 {[%clk 0:00:09.2]} 45...
Nd1 {[%clk 0:00:11.5]} 46. Qf4 {[%clk 0:00:05.8]} 46... Qb1 {[%clk 0:00:05]} 47.
Bxe6 {[%clk 0:00:05.6]} 47... Qg6+ {[%clk 0:00:05.3]} 48. Bg4 {[%clk 0:00:06.4]}
48... Nc3 {[%clk 0:00:05.3]} 49. h5 {[%clk 0:00:06.7]} 49... Qc6+ {[%clk
0:00:04.8]} 50. Bf3 {[%clk 0:00:06.9]} 50... Qc5 {[%clk 0:00:04.8]} 51. b4
{[%clk 0:00:06.8]} 51... Qc7 {[%clk 0:00:03.8]} 52. h6 {[%clk 0:00:06.6]} 52...
Kg8 {[%clk 0:00:04]} 53. Qf6 {[%clk 0:00:07]} 53... Kf8 {[%clk 0:00:02.5]} 54.
h7 {[%clk 0:00:07.1]} 1-0

[Event "Late-Titled-Tuesday-Blitz-January-16-2024"]
[Site "Chess.com"]
[Date "2024.01.16"]
[Round "4"]
[White "lucliasco"]
[Black "Makswolf200817"]
[Result "0-1"]
[WhiteElo "2879"]
[BlackElo "2728"]
[TimeControl "180+1"]
[EndTime "14:38:27 PST"]
[Termination "Makswolf200817 won on time"]

1. e4 {[%clk 0:03:00.9]} 1... c5 {[%clk 0:02:59.3]} 2. Nc3 {[%clk 0:03:00.2]}
2... d6 {[%clk 0:02:59.3]} 3. d4 {[%clk 0:02:58.4]} 3... cxd4 {[%clk 0:02:59.9]}
4. Qxd4 {[%clk 0:02:59.3]} 4... Nc6 {[%clk 0:02:59.6]} 5. Qd2 {[%clk 0:02:59.9]}
5... g6 {[%clk 0:03:00]} 6. b3 {[%clk 0:02:59.8]} 6... Bh6 {[%clk 0:03:00.2]} 7.
f4 {[%clk 0:02:59.2]} 7... e5 {[%clk 0:03:00.7]} 8. g3 {[%clk 0:02:53.1]} 8...
Nf6 {[%clk 0:03:00.6]} 9. Bb2 {[%clk 0:02:38.7]} 9... O-O {[%clk 0:03:00.4]} 10.
O-O-O {[%clk 0:02:37.2]} 10... Bg4 {[%clk 0:03:01]} 11. Be2 {[%clk 0:02:33.8]}
11... Nd4 {[%clk 0:02:49.7]} 12. Bxg4 {[%clk 0:02:22.3]} 12... Nxg4 {[%clk
0:02:50.6]} 13. Nd5 {[%clk 0:02:21.4]} 13... Bg7 {[%clk 0:02:40.8]} 14. h3
{[%clk 0:02:10.4]} 14... Nf6 {[%clk 0:02:38.6]} 15. Nxf6+ {[%clk 0:02:00.4]}
15... Bxf6 {[%clk 0:02:38.8]} 16. Ne2 {[%clk 0:01:58.2]} 16... Nxe2+ {[%clk
0:02:32.8]} 17. Qxe2 {[%clk 0:01:58.1]} 17... exf4 {[%clk 0:02:33.3]} 18. e5
{[%clk 0:01:51.6]} 18... Bxe5 {[%clk 0:01:43.4]} 19. Bxe5 {[%clk 0:01:48.7]}
19... Re8 {[%clk 0:01:43.3]} 20. gxf4 {[%clk 0:01:42.5]} 20... Qb6 {[%clk
0:01:33.3]} 21. Rhe1 {[%clk 0:01:22]} 21... dxe5 {[%clk 0:01:31.4]} 22. fxe5
{[%clk 0:01:22.9]} 22... Re7 {[%clk 0:01:25.9]} 23. Rd5 {[%clk 0:01:13.7]} 23...
Rae8 {[%clk 0:01:22.6]} 24. Qd2 {[%clk 0:01:08.8]} 24... Qe6 {[%clk 0:01:17.2]}
25. h4 {[%clk 0:01:01.9]} 25... h5 {[%clk 0:01:13.3]} 26. Qd4 {[%clk 0:00:56.3]}
26... a6 {[%clk 0:01:06.2]} 27. Kb1 {[%clk 0:00:49.8]} 27... Qg4 {[%clk
0:00:54.9]} 28. Re4 {[%clk 0:00:42.5]} 28... Qh3 {[%clk 0:00:49.9]} 29. Kb2
{[%clk 0:00:40.9]} 29... Kh7 {[%clk 0:00:46.4]} 30. a4 {[%clk 0:00:40.1]} 30...
Rc8 {[%clk 0:00:43.3]} 31. Rc5 {[%clk 0:00:31.4]} 31... Rd7 {[%clk 0:00:36.4]}
32. Qc4 {[%clk 0:00:27.1]} 32... Re8 {[%clk 0:00:36.3]} 33. Rc7 {[%clk
0:00:23.6]} 33... Rxc7 {[%clk 0:00:27.3]} 34. Qxc7 {[%clk 0:00:24.5]} 34... Qf5
{[%clk 0:00:27.9]} 35. Qxb7 {[%clk 0:00:19.8]} 35... Rxe5 {[%clk 0:00:26.1]} 36.
Rc4 {[%clk 0:00:18.5]} 36... Re6 {[%clk 0:00:23]} 37. b4 {[%clk 0:00:17.4]}
37... Rf6 {[%clk 0:00:20.8]} 38. b5 {[%clk 0:00:15.5]} 38... Qe6 {[%clk
0:00:16.6]} 39. Rc3 {[%clk 0:00:10.3]} 39... axb5 {[%clk 0:00:15.4]} 40. axb5
{[%clk 0:00:11.2]} 40... Qe5 {[%clk 0:00:14.9]} 41. Kb3 {[%clk 0:00:08.6]} 41...
Rf5 {[%clk 0:00:14.8]} 42. Kb4 {[%clk 0:00:07.9]} 42... Qd6+ {[%clk 0:00:14.5]}
43. Kb3 {[%clk 0:00:07.8]} 43... Rf4 {[%clk 0:00:14.1]} 44. Rc4 {[%clk
0:00:05.3]} 44... Qe6 {[%clk 0:00:13.3]} 45. Qc6 {[%clk 0:00:05.5]} 45... Qe3+
{[%clk 0:00:09.7]} 46. c3 {[%clk 0:00:06]} 46... Rf1 {[%clk 0:00:07.7]} 47. Rb4
{[%clk 0:00:02.5]} 47... Qe2 {[%clk 0:00:05.4]} 0-1

[Event "Late-Titled-Tuesday-Blitz-January-16-2024"]
[Site "Chess.com"]
[Date "2024.01.16"]
[Round "4"]
[White "varunkrishnanchess"]
[Black "chessprincesa1"]
[Result "1-0"]
[WhiteElo "2644"]
[BlackElo "2313"]
[TimeControl "180+1"]
[EndTime "14:38:27 PST"]
[Termination "varunkrishnanchess won by resignation"]

1. d4 {[%clk 0:02:53.5]} 1... Nf6 {[%clk 0:02:47.6]} 2. c4 {[%clk 0:02:50.8]}
2... e6 {[%clk 0:02:46.7]} 3. Nf3 {[%clk 0:02:49.2]} 3... d5 {[%clk 0:02:46.2]}
4. cxd5 {[%clk 0:02:48.2]} 4... exd5 {[%clk 0:02:45.6]} 5. Nc3 {[%clk
0:02:48.8]} 5... Bb4 {[%clk 0:02:44.4]} 6. Bg5 {[%clk 0:02:38.5]} 6... O-O
{[%clk 0:02:38]} 7. e3 {[%clk 0:02:38.3]} 7... h6 {[%clk 0:02:29.8]} 8. Bh4
{[%clk 0:02:38.1]} 8... g5 {[%clk 0:02:29.3]} 9. Bg3 {[%clk 0:02:37.9]} 9... Ne4
{[%clk 0:02:28.9]} 10. Qc2 {[%clk 0:02:37.5]} 10... h5 {[%clk 0:02:22.3]} 11.
Bd3 {[%clk 0:02:05.4]} 11... h4 {[%clk 0:01:58]} 12. Be5 {[%clk 0:02:02.8]}
12... Bf5 {[%clk 0:01:32]} 13. h3 {[%clk 0:01:19.8]} 13... c5 {[%clk 0:01:24.8]}
14. O-O {[%clk 0:01:02.9]} 14... Bxc3 {[%clk 0:01:19.1]} 15. bxc3 {[%clk
0:01:02.3]} 15... c4 {[%clk 0:01:18.5]} 16. Bxe4 {[%clk 0:01:01.9]} 16... Bxe4
{[%clk 0:01:19]} 17. Qb2 {[%clk 0:00:57.2]} 17... Qe7 {[%clk 0:01:15.6]} 18. Nd2
{[%clk 0:00:46.9]} 18... Bd3 {[%clk 0:00:55.2]} 19. Rfe1 {[%clk 0:00:46.7]}
19... Nc6 {[%clk 0:00:55.2]} 20. Bh2 {[%clk 0:00:46]} 20... f5 {[%clk
0:00:48.2]} 21. Qb5 {[%clk 0:00:43.1]} 21... Rfd8 {[%clk 0:00:45.6]} 22. f3
{[%clk 0:00:39.8]} 22... a6 {[%clk 0:00:33.9]} 23. Qb6 {[%clk 0:00:37.7]} 23...
Rd7 {[%clk 0:00:27.1]} 24. Qc5 {[%clk 0:00:22.7]} 24... Re8 {[%clk 0:00:25.3]}
25. Qxe7 {[%clk 0:00:22.2]} 25... Rdxe7 {[%clk 0:00:25.4]} 26. Kf2 {[%clk
0:00:22.8]} 26... b5 {[%clk 0:00:22.9]} 27. f4 {[%clk 0:00:20.6]} 27... g4
{[%clk 0:00:20]} 28. hxg4 {[%clk 0:00:16.1]} 28... fxg4 {[%clk 0:00:20.9]} 29.
g3 {[%clk 0:00:15.8]} 29... h3 {[%clk 0:00:21.1]} 30. a3 {[%clk 0:00:12.2]}
30... a5 {[%clk 0:00:21.1]} 31. e4 {[%clk 0:00:05.2]} 31... dxe4 {[%clk
0:00:19.8]} 32. Nf1 {[%clk 0:00:02.9]} 32... Bxf1 {[%clk 0:00:15.7]} 33. Kxf1
{[%clk 0:00:02.8]} 33... b4 {[%clk 0:00:08.9]} 34. axb4 {[%clk 0:00:02.7]} 34...
axb4 {[%clk 0:00:09.8]} 35. cxb4 {[%clk 0:00:03.1]} 35... Nxb4 {[%clk
0:00:10.4]} 36. Rec1 {[%clk 0:00:03]} 36... Nd3 {[%clk 0:00:10.1]} 37. Rxc4
{[%clk 0:00:02.8]} 37... e3 {[%clk 0:00:10.3]} 38. Ke2 {[%clk 0:00:02.7]} 38...
Nb2 {[%clk 0:00:10.4]} 39. Rc2 {[%clk 0:00:01.6]} 39... Rb7 {[%clk 0:00:08.4]}
40. Rb1 {[%clk 0:00:02.3]} 40... Reb8 {[%clk 0:00:05]} 41. d5 {[%clk 0:00:02.9]}
41... Rb3 {[%clk 0:00:04.1]} 42. d6 {[%clk 0:00:02.3]} 42... Nc4 {[%clk
0:00:03.8]} 43. Rxb3 {[%clk 0:00:01.7]} 43... Rxb3 {[%clk 0:00:04]} 44. Rxc4
{[%clk 0:00:01.6]} 44... Rb2+ {[%clk 0:00:04.1]} 45. Kxe3 {[%clk 0:00:02.3]}
45... Rb6 {[%clk 0:00:04.3]} 46. Rd4 {[%clk 0:00:03.2]} 46... Rb8 {[%clk
0:00:03.1]} 47. d7 {[%clk 0:00:04.1]} 47... Rd8 {[%clk 0:00:03.8]} 48. Ke4
{[%clk 0:00:04.6]} 48... Kf7 {[%clk 0:00:04.4]} 49. Kf5 {[%clk 0:00:05.2]} 49...
Ke7 {[%clk 0:00:05.3]} 50. Kxg4 {[%clk 0:00:05.8]} 1-0

[Event "Late-Titled-Tuesday-Blitz-January-16-2024"]
[Site "Chess.com"]
[Date "2024.01.16"]
[Round "4"]
[White "HajiyevKanan"]
[Black "ChessBrainiacOnTwitch"]
[Result "0-1"]
[WhiteElo "2578"]
[BlackElo "2805"]
[TimeControl "180+1"]
[EndTime "14:38:30 PST"]
[Termination "ChessBrainiacOnTwitch won by resignation"]

1. d4 {[%clk 0:03:00.9]} 1... Nf6 {[%clk 0:03:00.3]} 2. Nf3 {[%clk 0:03:01.5]}
2... e6 {[%clk 0:02:59.8]} 3. c4 {[%clk 0:03:00.9]} 3... d5 {[%clk 0:02:57.6]}
4. cxd5 {[%clk 0:03:01.8]} 4... exd5 {[%clk 0:02:58.5]} 5. Nc3 {[%clk
0:03:02.4]} 5... Bb4 {[%clk 0:02:52]} 6. Qb3 {[%clk 0:02:57.9]} 6... c5 {[%clk
0:02:46.1]} 7. Bg5 {[%clk 0:02:51.3]} 7... Nc6 {[%clk 0:02:28.3]} 8. a3 {[%clk
0:02:44]} 8... cxd4 {[%clk 0:02:02.7]} 9. axb4 {[%clk 0:02:37.4]} 9... dxc3
{[%clk 0:02:03]} 10. bxc3 {[%clk 0:02:37.2]} 10... h6 {[%clk 0:02:02.5]} 11.
Bxf6 {[%clk 0:02:30.2]} 11... Qxf6 {[%clk 0:02:02.5]} 12. e3 {[%clk 0:02:30.6]}
12... O-O {[%clk 0:01:36.1]} 13. Bb5 {[%clk 0:02:27.8]} 13... Bg4 {[%clk
0:01:34.6]} 14. Nd4 {[%clk 0:02:23]} 14... Ne5 {[%clk 0:01:29.4]} 15. O-O {[%clk
0:02:19.9]} 15... Rfd8 {[%clk 0:01:27.4]} 16. Rfc1 {[%clk 0:02:12.7]} 16... a6
{[%clk 0:01:25.6]} 17. Bf1 {[%clk 0:02:12.9]} 17... Rac8 {[%clk 0:01:23.7]} 18.
b5 {[%clk 0:02:08.6]} 18... axb5 {[%clk 0:01:23.1]} 19. Qxb5 {[%clk 0:02:09.3]}
19... Rd7 {[%clk 0:01:11.5]} 20. h3 {[%clk 0:02:04.3]} 20... Be6 {[%clk
0:01:08.6]} 21. Ra7 {[%clk 0:01:52.6]} 21... Rdc7 {[%clk 0:01:08.7]} 22. f4
{[%clk 0:01:39.1]} 22... Nc6 {[%clk 0:00:48.4]} 23. Nxc6 {[%clk 0:00:57.5]}
23... bxc6 {[%clk 0:00:49.3]} 24. Qb6 {[%clk 0:00:51.7]} 24... Rxa7 {[%clk
0:00:47.8]} 25. Qxa7 {[%clk 0:00:52.6]} 25... Qg6 {[%clk 0:00:44.7]} 26. Kh2
{[%clk 0:00:47.2]} 26... c5 {[%clk 0:00:45]} 27. Qb7 {[%clk 0:00:38]} 27... Qe4
{[%clk 0:00:43.1]} 28. Re1 {[%clk 0:00:23.9]} 28... Re8 {[%clk 0:00:43.4]} 29.
c4 {[%clk 0:00:21.9]} 29... g5 {[%clk 0:00:34.2]} 30. Qc6 {[%clk 0:00:20]} 30...
Rc8 {[%clk 0:00:31.4]} 31. Qd6 {[%clk 0:00:14.9]} 31... dxc4 {[%clk 0:00:27.5]}
32. fxg5 {[%clk 0:00:12.4]} 32... hxg5 {[%clk 0:00:28.4]} 33. Qg3 {[%clk
0:00:05.7]} 33... f6 {[%clk 0:00:28.8]} 34. Be2 {[%clk 0:00:05.3]} 34... c3
{[%clk 0:00:25.9]} 35. Bf3 {[%clk 0:00:05.9]} 35... Qd3 {[%clk 0:00:22.5]} 36.
Rd1 {[%clk 0:00:04.9]} 36... Qf5 {[%clk 0:00:14.5]} 37. Qd6 {[%clk 0:00:04.7]}
37... Qe5+ {[%clk 0:00:13.8]} 38. Qxe5 {[%clk 0:00:05]} 38... fxe5 {[%clk
0:00:14.7]} 39. Rc1 {[%clk 0:00:05.7]} 39... c4 {[%clk 0:00:09.6]} 40. Rxc3
{[%clk 0:00:06.1]} 40... Kf7 {[%clk 0:00:10.4]} 41. Be2 {[%clk 0:00:06.6]} 41...
Ke7 {[%clk 0:00:11]} 42. Kg3 {[%clk 0:00:07.3]} 42... Kd6 {[%clk 0:00:11.6]} 43.
h4 {[%clk 0:00:07.8]} 43... gxh4+ {[%clk 0:00:11.3]} 44. Kxh4 {[%clk 0:00:08.7]}
44... Rh8+ {[%clk 0:00:11.3]} 45. Kg3 {[%clk 0:00:08.3]} 45... Rg8+ {[%clk
0:00:11.8]} 46. Kf2 {[%clk 0:00:08.9]} 46... Kc5 {[%clk 0:00:12.4]} 47. Rc1
{[%clk 0:00:06.7]} 47... Kb4 {[%clk 0:00:12.3]} 48. Rb1+ {[%clk 0:00:07.4]}
48... Kc3 {[%clk 0:00:12.9]} 49. Rb6 {[%clk 0:00:08.1]} 49... Bd5 {[%clk
0:00:10.5]} 50. Rd6 {[%clk 0:00:08.1]} 50... Be4 {[%clk 0:00:10.6]} 51. Re6
{[%clk 0:00:06.8]} 51... Rxg2+ {[%clk 0:00:10.5]} 52. Kf1 {[%clk 0:00:06.3]}
52... Rg5 {[%clk 0:00:11.3]} 53. Kf2 {[%clk 0:00:05.9]} 53... Bd3 {[%clk
0:00:11.7]} 54. Bxd3 {[%clk 0:00:02.9]} 54... cxd3 {[%clk 0:00:12.6]} 55. Rc6+
{[%clk 0:00:03.2]} 55... Kd2 {[%clk 0:00:13]} 56. e4 {[%clk 0:00:03.2]} 56...
Rg4 {[%clk 0:00:12.8]} 57. Kf3 {[%clk 0:00:03.8]} 57... Rf4+ {[%clk 0:00:12.9]}
58. Kg3 {[%clk 0:00:04.6]} 58... Rxe4 {[%clk 0:00:13.7]} 0-1

[Event "Late-Titled-Tuesday-Blitz-January-16-2024"]
[Site "Chess.com"]
[Date "2024.01.16"]
[Round "4"]
[White "Maitreia"]
[Black "VitorBronson"]
[Result "1/2-1/2"]
[WhiteElo "2723"]
[BlackElo "2560"]
[TimeControl "180+1"]
[EndTime "14:38:30 PST"]
[Termination "Game drawn - insufficient material"]

1. c4 {[%clk 0:03:00.9]} 1... c6 {[%clk 0:02:58.3]} 2. Nf3 {[%clk 0:03:00.9]}
2... d5 {[%clk 0:02:59]} 3. g3 {[%clk 0:03:01.8]} 3... Nf6 {[%clk 0:02:59.2]} 4.
Bg2 {[%clk 0:03:02.7]} 4... e6 {[%clk 0:02:58.9]} 5. b3 {[%clk 0:03:02.9]} 5...
Nbd7 {[%clk 0:02:58.7]} 6. Bb2 {[%clk 0:03:03.2]} 6... Be7 {[%clk 0:02:55.5]} 7.
O-O {[%clk 0:03:03.8]} 7... O-O {[%clk 0:02:55.8]} 8. d3 {[%clk 0:03:04.4]} 8...
b6 {[%clk 0:02:55.7]} 9. Nc3 {[%clk 0:03:04.6]} 9... Bb7 {[%clk 0:02:56]} 10. e4
{[%clk 0:03:05.2]} 10... dxe4 {[%clk 0:02:51.5]} 11. dxe4 {[%clk 0:03:06.1]}
11... Nc5 {[%clk 0:02:50.5]} 12. e5 {[%clk 0:03:03.6]} 12... Nfe4 {[%clk
0:02:31]} 13. Nxe4 {[%clk 0:02:56.3]} 13... Nxe4 {[%clk 0:02:31.1]} 14. Qc2
{[%clk 0:02:53.6]} 14... Nc5 {[%clk 0:01:57.6]} 15. Nd4 {[%clk 0:02:52.9]} 15...
Qc7 {[%clk 0:01:56.3]} 16. b4 {[%clk 0:02:53.2]} 16... Nd7 {[%clk 0:01:52.4]}
17. b5 {[%clk 0:02:53.8]} 17... Nxe5 {[%clk 0:01:44.2]} 18. f4 {[%clk
0:02:43.3]} 18... c5 {[%clk 0:01:32]} 19. Nxe6 {[%clk 0:02:31.1]} 19... fxe6
{[%clk 0:01:32.9]} 20. Bxe5 {[%clk 0:02:30.5]} 20... Qc8 {[%clk 0:01:33.3]} 21.
Rad1 {[%clk 0:02:23.1]} 21... Bxg2 {[%clk 0:01:32.7]} 22. Qxg2 {[%clk 0:02:24]}
22... Bf6 {[%clk 0:01:33.3]} 23. Rd6 {[%clk 0:02:16.1]} 23... Bxe5 {[%clk
0:01:30.9]} 24. fxe5 {[%clk 0:02:17]} 24... Rxf1+ {[%clk 0:01:31.4]} 25. Qxf1
{[%clk 0:02:17.5]} 25... a6 {[%clk 0:01:30.4]} 26. bxa6 {[%clk 0:02:04.3]} 26...
Qxa6 {[%clk 0:01:22.2]} 27. Qd3 {[%clk 0:01:22.6]} 27... Qxa2 {[%clk 0:01:17]}
28. Rd8+ {[%clk 0:01:22.6]} 28... Rxd8 {[%clk 0:01:16.9]} 29. Qxd8+ {[%clk
0:01:23.5]} 29... Kf7 {[%clk 0:01:16.4]} 30. Qd7+ {[%clk 0:01:23.8]} 30... Kf8
{[%clk 0:01:17]} 31. Qd6+ {[%clk 0:01:22.6]} 31... Kf7 {[%clk 0:01:15.4]} 32.
Qd7+ {[%clk 0:01:22.8]} 32... Kf8 {[%clk 0:01:15.2]} 33. Qxe6 {[%clk 0:01:23.4]}
33... Qb1+ {[%clk 0:01:13.1]} 34. Kg2 {[%clk 0:01:20.8]} 34... g6 {[%clk
0:01:12]} 35. Qf6+ {[%clk 0:01:12.9]} 35... Kg8 {[%clk 0:01:12.2]} 36. Qd8+
{[%clk 0:01:10.8]} 36... Kg7 {[%clk 0:01:11.1]} 37. Qe7+ {[%clk 0:01:08.6]}
37... Kg8 {[%clk 0:01:00.4]} 38. Qd8+ {[%clk 0:00:56]} 38... Kg7 {[%clk
0:00:59.6]} 39. Qd7+ {[%clk 0:00:54.6]} 39... Kg8 {[%clk 0:00:55.4]} 40. Qd5+
{[%clk 0:00:49.6]} 40... Kg7 {[%clk 0:00:53.1]} 41. e6 {[%clk 0:00:35.4]} 41...
Qc2+ {[%clk 0:00:52.2]} 42. Kf3 {[%clk 0:00:32.6]} 42... Qf5+ {[%clk 0:00:25.3]}
43. Qxf5 {[%clk 0:00:32.6]} 43... gxf5 {[%clk 0:00:26.2]} 44. Kf4 {[%clk
0:00:33.5]} 44... Kf6 {[%clk 0:00:26.6]} 45. e7 {[%clk 0:00:34.1]} 45... Kxe7
{[%clk 0:00:26.9]} 46. Kxf5 {[%clk 0:00:35]} 46... Kd6 {[%clk 0:00:22.7]} 47. g4
{[%clk 0:00:33.7]} 47... Kc6 {[%clk 0:00:15.7]} 48. g5 {[%clk 0:00:33.7]} 48...
b5 {[%clk 0:00:16.4]} 49. cxb5+ {[%clk 0:00:24.8]} 49... Kxb5 {[%clk 0:00:17.3]}
50. h4 {[%clk 0:00:23.4]} 50... c4 {[%clk 0:00:17.4]} 51. Ke4 {[%clk 0:00:23.6]}
51... Kb4 {[%clk 0:00:17.7]} 52. h5 {[%clk 0:00:23.9]} 52... c3 {[%clk
0:00:17.4]} 53. Kd3 {[%clk 0:00:23.5]} 53... Kb3 {[%clk 0:00:17.5]} 54. g6
{[%clk 0:00:24.1]} 54... hxg6 {[%clk 0:00:17]} 55. hxg6 {[%clk 0:00:22.9]} 55...
c2 {[%clk 0:00:16.9]} 56. g7 {[%clk 0:00:22.9]} 56... c1=Q {[%clk 0:00:17.2]}
57. g8=Q+ {[%clk 0:00:23.8]} 57... Kb2 {[%clk 0:00:16.9]} 58. Qb8+ {[%clk
0:00:22.8]} 58... Ka1 {[%clk 0:00:17]} 59. Qa7+ {[%clk 0:00:22.1]} 59... Kb1
{[%clk 0:00:16.9]} 60. Qb6+ {[%clk 0:00:21.4]} 60... Qb2 {[%clk 0:00:17.1]} 61.
Qg1+ {[%clk 0:00:21.5]} 61... Qc1 {[%clk 0:00:17.3]} 62. Qxc1+ {[%clk
0:00:20.4]} 62... Kxc1 {[%clk 0:00:17.2]} 1/2-1/2

[Event "Late-Titled-Tuesday-Blitz-January-16-2024"]
[Site "Chess.com"]
[Date "2024.01.16"]
[Round "4"]
[White "DavidGavrilescu18"]
[Black "GHANDEEVAM2003"]
[Result "0-1"]
[WhiteElo "2780"]
[BlackElo "3004"]
[TimeControl "180+1"]
[EndTime "14:38:33 PST"]
[Termination "GHANDEEVAM2003 won by resignation"]

1. e4 {[%clk 0:03:00.9]} 1... c6 {[%clk 0:02:58.2]} 2. Nf3 {[%clk 0:03:00.4]}
2... d5 {[%clk 0:02:59.1]} 3. Nc3 {[%clk 0:03:01.1]} 3... Nf6 {[%clk 0:02:57]}
4. e5 {[%clk 0:03:00.5]} 4... Ne4 {[%clk 0:02:57.6]} 5. Ne2 {[%clk 0:03:00.9]}
5... Bg4 {[%clk 0:02:53.9]} 6. Nfg1 {[%clk 0:03:00.1]} 6... Nc5 {[%clk
0:02:35.6]} 7. d4 {[%clk 0:02:57.9]} 7... Ne6 {[%clk 0:02:34.8]} 8. h3 {[%clk
0:02:56.1]} 8... Bxe2 {[%clk 0:02:33.8]} 9. Bxe2 {[%clk 0:02:55.6]} 9... c5
{[%clk 0:02:33.5]} 10. dxc5 {[%clk 0:02:39.6]} 10... Nc6 {[%clk 0:02:32.8]} 11.
Nf3 {[%clk 0:02:39.8]} 11... Nxc5 {[%clk 0:02:29.7]} 12. O-O {[%clk 0:02:39.7]}
12... e6 {[%clk 0:02:19.5]} 13. Bf4 {[%clk 0:02:33.7]} 13... Be7 {[%clk
0:02:16.7]} 14. c3 {[%clk 0:02:14.7]} 14... h5 {[%clk 0:02:04]} 15. Nd4 {[%clk
0:02:01.4]} 15... g5 {[%clk 0:02:00.6]} 16. Bg3 {[%clk 0:02:00.4]} 16... g4
{[%clk 0:01:52.8]} 17. hxg4 {[%clk 0:01:58.6]} 17... hxg4 {[%clk 0:01:49.3]} 18.
Bxg4 {[%clk 0:01:59.5]} 18... Ne4 {[%clk 0:01:47.7]} 19. Qd3 {[%clk 0:01:42.6]}
19... Bh4 {[%clk 0:01:33.1]} 20. Qb5 {[%clk 0:01:11.8]} 20... Qd7 {[%clk
0:01:09.9]} 21. Bxh4 {[%clk 0:01:05.1]} 21... Rxh4 {[%clk 0:01:09.8]} 22. Bh3
{[%clk 0:01:05.5]} 22... Nxe5 {[%clk 0:01:05.8]} 23. Qxd7+ {[%clk 0:01:05.3]}
23... Kxd7 {[%clk 0:01:06.7]} 24. Rfe1 {[%clk 0:01:03.5]} 24... Rg8 {[%clk
0:01:04.2]} 25. Kf1 {[%clk 0:00:59.8]} 25... Nd3 {[%clk 0:00:55.4]} 26. Re2
{[%clk 0:01:00.2]} 26... Rf4 {[%clk 0:00:55.1]} 27. Nf3 {[%clk 0:00:57.3]} 27...
Rh8 {[%clk 0:00:50.3]} 28. Rd1 {[%clk 0:00:53.9]} 28... Rxf3 {[%clk 0:00:42.6]}
29. gxf3 {[%clk 0:00:51.9]} 29... Nexf2 {[%clk 0:00:35.7]} 30. Rxf2 {[%clk
0:00:15.5]} 30... Nxf2 {[%clk 0:00:36.6]} 31. Kxf2 {[%clk 0:00:16]} 31... Rxh3
{[%clk 0:00:36.3]} 32. Kg2 {[%clk 0:00:16]} 32... Rh4 {[%clk 0:00:34.2]} 33. Kg3
{[%clk 0:00:15.7]} 33... Ra4 {[%clk 0:00:33.5]} 34. a3 {[%clk 0:00:16.1]} 34...
Ke7 {[%clk 0:00:33.7]} 35. Kf2 {[%clk 0:00:14.7]} 35... Kd6 {[%clk 0:00:31.7]}
36. Ke3 {[%clk 0:00:15.2]} 36... Rh4 {[%clk 0:00:31]} 37. Rg1 {[%clk 0:00:15.4]}
37... Rh2 {[%clk 0:00:30.1]} 38. b4 {[%clk 0:00:14.5]} 38... Ra2 {[%clk
0:00:29.4]} 39. Rg7 {[%clk 0:00:15.1]} 39... Rxa3 {[%clk 0:00:28.6]} 40. Rxf7
{[%clk 0:00:15.4]} 40... Rxc3+ {[%clk 0:00:26.6]} 41. Kd2 {[%clk 0:00:16]} 41...
Rc7 {[%clk 0:00:26.6]} 42. Rf8 {[%clk 0:00:16.5]} 42... Rc4 {[%clk 0:00:27.1]}
43. b5 {[%clk 0:00:13.4]} 43... Rb4 {[%clk 0:00:25.4]} 44. Ra8 {[%clk
0:00:13.9]} 44... Rxb5 {[%clk 0:00:24.5]} 45. Rxa7 {[%clk 0:00:14.5]} 45... Ke5
{[%clk 0:00:21.6]} 46. Ra4 {[%clk 0:00:13.5]} 46... Rb3 {[%clk 0:00:21.2]} 47.
Ke2 {[%clk 0:00:13.5]} 47... b5 {[%clk 0:00:19.9]} 48. Rh4 {[%clk 0:00:13.1]}
48... b4 {[%clk 0:00:19.9]} 49. Rh5+ {[%clk 0:00:13]} 49... Kd6 {[%clk
0:00:18.6]} 50. Rh8 {[%clk 0:00:12.8]} 50... Rc3 {[%clk 0:00:17.7]} 51. Rb8
{[%clk 0:00:11.7]} 51... b3 {[%clk 0:00:17.6]} 52. Kd2 {[%clk 0:00:12.1]} 52...
Rxf3 {[%clk 0:00:17.2]} 53. Ke2 {[%clk 0:00:12.8]} 53... Rh3 {[%clk 0:00:17.7]}
54. Kd2 {[%clk 0:00:13.4]} 54... b2 {[%clk 0:00:16.7]} 0-1